Workbook

Sheet 收入支出决算总表
A1: 附件2
A2: 收入支出决算总表
D3: 公开01表
A4: 公开单位：重庆市江津区油溪中心卫生院 | D4: 单位：万元
A5: 收入 | C5: 支出
A6: 项目 | B6: 决算数 | C6: 功能分类科目 | D6: 决算数
A7: 一、一般公共预算财政拨款收入 | B7: 2,205.90 | C7: 一、一般公共服务支出
A8: 二、政府性基金预算财政拨款收入 | C8: 二、外交支出
A9: 三、国有资本经营预算财政拨款收入 | C9: 三、国防支出
A10: 四、上级补助收入 | C10: 四、公共安全支出
A11: 五、事业收入 | B11: 2,983.92 | C11: 五、教育支出
A12: 六、经营收入 | C12: 六、科学技术支出
A13: 七、附属单位上缴收入 | C13: 七、文化旅游体育与传媒支出
A14: 八、其他收入 | B14: 107.80 | C14: 八、社会保障和就业支出 | D14: 519.95
C15: 九、卫生健康支出 | D15: 4,582.27
C16: 十、节能环保支出
C17: 十一、城乡社区支出
C18: 十二、农林水支出
C19: 十三、交通运输支出
C20: 十四、资源勘探工业信息等支出
C21: 十五、商业服务业等支出
C22: 十六、金融支出
C23: 十七、援助其他地区支出
C24: 十八、自然资源海洋气象等支出
C25: 十九、住房保障支出 | D25: 195.40
C26: 二十、粮油物资储备支出
C27: 二十一、国有资本经营预算支出
C28: 二十二、灾害防治及应急管理支出
C29: 二十三、其他支出
C30: 二十四、债务还本支出
C31: 二十五、债务付息支出
C32: 二十六、抗疫特别国债安排的支出
A33: 本年收入合计 | B33: =SUM(B7:B32) -> 5,297.62 | C33: 本年支出合计 | D33: =SUM(D7:D32) -> 5,297.62
A34: 使用非财政拨款结余和专用结余 | C34: 结余分配
A35: 年初结转和结余 | C35: 年末结转和结余
A36: 总计 | B36: =B33 -> 5,297.62 | C36: 总计 | D36: =D33 -> 5,297.62
A37: 备注：本表反映部门本年度的总收支和年末结转结余等情况。

Sheet 收入决算表
A1: 收入决算表
J2: 公开02表
A3: 公开单位：重庆市江津区油溪中心卫生院 | J3: 单位：万元
A4: 项目 | C4: 本年收入合计 | D4: 财政拨款收入 | E4: 上级补助收入 | F4: 事业收入 | H4: 经营收入 | I4: 附属单位上缴收入 | J4: 其他收入
A5: 功能分类科目编码 | B5: 项目(按“项”级功能分类科目) | J5: 小计
F6: 小计 | G6: 其中：教育收费
A8: 合计 | C8: =C9+C16+C29 -> 5,297.62 | D8: =D9+D16+D29 -> 2,205.90 | F8: 2,983.92 | J8: 107.80
A9: 208 | B9: 社会保障和就业支出 | C9: =C10+C14 -> 519.95 | D9: =D10+D14 -> 519.95
A10: 20805 | B10: 行政事业单位养老支出 | C10: =C11+C12+C13 -> 513.11 | D10: =D11+D12+D13 -> 513.11
A11: 2080505 | B11: 机关事业单位基本养老保险缴费支出 | C11: 204.06 | D11: 204.06
A12: 2080506 | B12: 机关事业单位职业年金缴费支出 | C12: 102.10 | D12: 102.10
A13: 2080599 | B13: 其他行政事业单位养老支出 | C13: 206.95 | D13: 206.95
A14: 20808 | B14: 抚恤 | C14: =C15 -> 6.84 | D14: =D15 -> 6.84
A15: 2080801 | B15: 死亡抚恤 | C15: 6.84 | D15: 6.84
A16: 210 | B16: 卫生健康支出 | C16: =C17+C20+C24+C26 -> 4,582.27 | D16: =D17+D20+D24+D26 -> 1,680.95 | F16: 2,793.52 | J16: =J17+J20+J24+J26 -> 107.80
A17: 21003 | B17: 基层医疗卫生机构 | C17: =C18+C19 -> 3,885.55 | D17: =D18+D19 -> 1,074.96 | F17: =F18+F19 -> 2,739.25 | J17: =J18+J19 -> 71.34
A18: 2100302 | B18: 乡镇卫生院 | C18: 3,675.96 | D18: 896.04 | F18: 2739.25 | J18: 40.67
A19: 2100399 | B19: 其他基层医疗卫生机构支出 | C19: 209.59 | D19: 178.92 | J19: 30.67
A20: 21004 | B20: 公共卫生 | C20: =SUM(C21:C23) -> 559.72 | D20: =SUM(D21:D23) -> 523.38 | J20: =SUM(J21:J23) -> 36.34
A21: 2100408 | B21: 基本公共卫生服务 | C21: 524.15 | D21: 509.41 | J21: 14.74
A22: 2100409 | B22: 重大公共卫生服务 | C22: 7.00 | D22: 6.90 | J22: 0.10
A23: 2100410 | B23: 突发公共卫生事件应急处理 | C23: 28.57 | D23: 7.07 | J23: 21.50
A24: 21007 | B24: 计划生育事务 | C24: 0.12 | J24: 0.12
A25: 2100717 | B25: 计划生育服务 | C25: 0.12 | J25: 0.12
A26: 21011 | B26: 行政事业单位医疗 | C26: =C27+C28 -> 136.88 | D26: 82.61 | F26: 54.27
A27: 2101102 | B27: 事业单位医疗 | C27: 76.59 | D27: 51.56 | F27: 25.03
A28: 2101199 | B28: 其他行政事业单位医疗支出 | C28: 60.29 | D28: 31.05 | F28: 29.24
A29: 221 | B29: 住房保障支出 | C29: =C30 -> 195.40 | D29: 5.00 | F29: 190.40
A30: 22102 | B30: 住房改革支出 | C30: =C31 -> 195.40 | D30: 5.00 | F30: 190.40
A31: 2210201 | B31: 住房公积金 | C31: 195.40 | D31: 5.00 | F31: 190.40
A32: 备注：本表反映部门本年度取得的各项收入情况。

Sheet 支出决算表
A1: 支出决算表
H2: 公开03表
A3: 公开单位：重庆市江津区油溪中心卫生院 | H3: 单位：万元
A4: 项目 | C4: 本年支出合计 | D4: 基本支出 | E4: 项目支出 | F4: 上缴上级支出 | G4: 经营支出 | H4: 对附属单位补助支出
A5: 功能分类科目编码 | B5: 项目(按“项”级功能分类科目)
A8: 合计 | C8: 5,297.62 | D8: 4,489.68 | E8: 807.94
A9: 208 | B9: 社会保障和就业支出 | C9: 519.95 | D9: 519.95 | E9: 0
A10: 20805 | B10: 行政事业单位养老支出 | C10: 513.11 | D10: 513.11 | E10: 0
A11: 2080505 | B11: 机关事业单位基本养老保险缴费支出 | C11: 204.06 | D11: 204.06 | E11: 0
A12: 2080506 | B12: 机关事业单位职业年金缴费支出 | C12: 102.10 | D12: 102.10 | E12: 0
A13: 2080599 | B13: 其他行政事业单位养老支出 | C13: 206.95 | D13: 206.95 | E13: 0
A14: 20808 | B14: 抚恤 | C14: 6.84 | D14: 6.84 | E14: 0
A15: 2080801 | B15: 死亡抚恤 | C15: 6.84 | D15: 6.84 | E15: 0
A16: 210 | B16: 卫生健康支出 | C16: 4,582.27 | D16: 3,774.32 | E16: 807.94
A17: 21003 | B17: 基层医疗卫生机构 | C17: 3,885.55 | D17: 3,637.44 | E17: 248.11
A18: 2100302 | B18: 乡镇卫生院 | C18: 3,675.96 | D18: 3,637.44 | E18: 38.52
A19: 2100399 | B19: 其他基层医疗卫生机构支出 | C19: 209.59 | D19: 0.00 | E19: 209.59
A20: 21004 | B20: 公共卫生 | C20: 559.72 | D20: 0.00 | E20: 559.72
A21: 2100408 | B21: 基本公共卫生服务 | C21: 524.15 | D21: 0.00 | E21: 524.15
A22: 2100409 | B22: 重大公共卫生服务 | C22: 7.00 | D22: 0.00 | E22: 7
A23: 2100499 | B23: 其他公共卫生支出 | C23: 28.57 | D23: 0.00 | E23: 28.57
A24: 21007 | B24: 计划生育事务 | C24: 0.12 | D24: 0.00 | E24: 0.12
A25: 2100717 | B25: 计划生育服务 | C25: 0.12 | D25: 0.00 | E25: 0.12
A26: 21011 | B26: 行政事业单位医疗 | C26: 136.88 | D26: 136.88
A27: 2101102 | B27: 事业单位医疗 | C27: 76.59 | D27: 76.59
A28: 2101199 | B28: 其他行政事业单位医疗支出 | C28: 60.29 | D28: 60.29
A29: 221 | B29: 住房保障支出 | C29: 195.40 | D29: 195.40
A30: 22102 | B30: 住房改革支出 | C30: 195.40 | D30: 195.40
A31: 2210201 | B31: 住房公积金 | C31: 195.40 | D31: 195.40
A32: 备注：本表反映部门本年度各项支出情况。

Sheet 财政拨款收入支出决算总表
A1: 财政拨款收入支出决算总表
G2: 公开04表
A3: 公开单位：重庆市江津区油溪中心卫生院 | G3: 单位：万元
A4: 收 入 | C4: 支 出
A5: 项 目 | B5: 决算数 | C5: 功能分类科目 | D5: 决算数
D6: 小计 | E6: 一般公共预算财政拨款 | F6: 政府性基金预算财政拨款 | G6: 国有资本经营预算财政拨款
A7: 一、一般公共预算财政拨款 | B7: 2205.9 | C7: 一、一般公共服务支出
A8: 二、政府性基金预算财政拨款 | B8: 0 | C8: 二、外交支出
A9: 三、国有资本经营预算财政拨款 | B9: 0 | C9: 三、国防支出
C10: 四、公共安全支出
C11: 五、教育支出
C12: 六、科学技术支出
C13: 七、文化旅游体育与传媒支出
C14: 八、社会保障和就业支出 | D14: 519.95 | E14: 519.95
C15: 九、卫生健康支出 | D15: 1680.95 | E15: 1680.95
C16: 十、节能环保支出
C17: 十一、城乡社区支出
C18: 十二、农林水支出
C19: 十三、交通运输支出
C20: 十四、资源勘探工业信息等支出
C21: 十五、商业服务业等支出
C22: 十六、金融支出
C23: 十七、援助其他地区支出
C24: 十八、自然资源海洋气象等支出
C25: 十九、住房保障支出 | D25: 5 | E25: 5
C26: 二十、粮油物资储备支出
C27: 二十一、国有资本经营预算支出
C28: 二十二、灾害防治及应急管理支出
C29: 二十三、其他支出
C30: 二十四、债务还本支出
A31: 本年收入合计 | B31: =SUM(B7:B30) -> 2205.9 | C31: 二十五、债务付息支出
A32: 年初财政拨款结转和结余 | C32: 二十六、抗疫特别国债安排的支出
A33: 一般公共预算财政拨款 | C33: 本年支出合计 | D33: =SUM(D7:D32) -> 2205.9 | E33: =SUM(E7:E32) -> 2205.9
A34: 政府性基金预算财政拨款 | C34: 年末财政拨款结转和结余
A35: 国有资本经营预算财政拨款
A36: 总计 | B36: =B31 -> 2205.9 | C36: 总计 | D36: =D33 -> 2205.9 | E36: =E33 -> 2205.9
A37: 备注：本表反映部门本年度一般公共预算财政拨款、政府性基金预算财政拨款及国有资本经营预算财政拨款的总收支和年末结转结余情况。

Sheet 一般公共预算财政拨款支出决算表
A1: 一般公共预算财政拨款支出决算表
E2: 公开05表
A3: 公开单位：重庆市江津区油溪中心卫生院 | E3: 单位：万元
A4: 功能分类科目编码 | B4: 项目(按“项”级功能分类科目) | C4: 本年支出
C5: 合计 | D5: 基本支出 | E5: 项目支出
A6: 合 计 | C6: =C7+C14+C25 -> 2,205.90 | D6: =D7+D14+D25 -> 1,495.36 | E6: =E7+E14+E25 -> 710.54
A7: 208 | B7: 社会保障和就业支出 | C7: =C8+C12 -> 519.95 | D7: =D8+D12 -> 519.95 | E7: 0.00
A8: 20805 | B8: 行政事业单位养老支出 | C8: =SUM(C9:C11) -> 513.11 | D8: =SUM(D9:D11) -> 513.11 | E8: 0.00
A9: 2080505 | B9: 机关事业单位基本养老保险缴费支出 | C9: 204.06 | D9: 204.06 | E9: 0.00
A10: 2080506 | B10: 机关事业单位职业年金缴费支出 | C10: 102.10 | D10: 102.10 | E10: 0.00
A11: 2080599 | B11: 其他行政事业单位养老支出 | C11: 206.95 | D11: 206.95 | E11: 0.00
A12: 20808 | B12: 抚恤 | C12: 6.84 | D12: 6.84 | E12: 0.00
A13: 2080801 | B13: 死亡抚恤 | C13: 6.84 | D13: 6.84 | E13: 0.00
A14: 210 | B14: 卫生健康支出 | C14: =C15+C18+C22 -> 1,680.95 | D14: =D15+D18+D22 -> 970.41 | E14: =E15+E18+E22 -> 710.54
A15: 21003 | B15: 基层医疗卫生机构 | C15: =SUM(C16:C17) -> 1,074.96 | D15: =SUM(D16:D17) -> 887.80 | E15: =SUM(E16:E17) -> 187.16
A16: 2100302 | B16: 乡镇卫生院 | C16: 896.04 | D16: 887.80 | E16: 8.24
A17: 2100399 | B17: 其他基层医疗卫生机构支出 | C17: 178.92 | D17: 0.00 | E17: 178.92
A18: 21004 | B18: 公共卫生 | C18: =SUM(C19:C21) -> 523.38 | D18: =SUM(D19:D21) -> 0.00 | E18: =SUM(E19:E21) -> 523.38
A19: 2100408 | B19: 基本公共卫生服务 | C19: 509.41 | D19: 0.00 | E19: 509.41
A20: 2100409 | B20: 重大公共卫生服务 | C20: 6.90 | D20: 0.00 | E20: 6.90
A21: 2100410 | B21: 突发公共卫生事件应急处理 | C21: 7.07 | D21: 0.00 | E21: 7.07
A22: 21011 | B22: 行政事业单位医疗 | C22: =SUM(C23:C24) -> 82.61 | D22: =SUM(D23:D24) -> 82.61 | E22: =SUM(E23:E24) -> 0.00
A23: 2101102 | B23: 事业单位医疗 | C23: 51.56 | D23: 51.56 | E23: 0.00
A24: 2101199 | B24: 其他行政事业单位医疗支出 | C24: 31.05 | D24: 31.05 | E24: 0.00
A25: 221 | B25: 住房保障支出 | C25: 5.00 | D25: 5.00 | E25: 0.00
A26: 22102 | B26: 住房改革支出 | C26: 5.00 | D26: 5.00 | E26: 0.00
A27: 2210201 | B27: 住房公积金 | C27: 5.00 | D27: 5.00 | E27: 0.00
A28: 备注：本表反映部门本年度一般公共预算财政拨款支出情况。

Sheet 一般公共预算财政拨款基本支出决算表
A1: 一般公共预算财政拨款基本支出决算表
I2: 公开06表
A3: 公开单位：重庆市江津区油溪中心卫生院 | I3: 单位：万元
A4: 人员经费 | D4: 公用经费
A5: 经济分类科目编码 | B5: 经济分类科目（按“款”级经济分类科目） | C5: 金额 | D5: 经济分类科目编码 | E5: 经济分类科目（按“款”级经济分类科目） | F5: 金额 | G5: 经济分类科目编码 | H5: 经济分类科目（按“款”级经济分类科目） | I5: 金额
A7: 301 | B7: 工资福利支出 | C7: =SUM(C8:C20) -> 1255.32 | D7: 302 | E7: 商品和服务支出 | G7: 310 | H7: 资本性支出
A8: 30101 | B8: 基本工资 | C8: 253.62 | D8: 30201 | E8: 办公费 | G8: 31001 | H8: 房屋建筑物购建
A9: 30102 | B9: 津贴补贴 | C9: 32.9 | D9: 30202 | E9: 印刷费 | G9: 31002 | H9: 办公设备购置
A10: 30103 | B10: 奖金 | D10: 30203 | E10: 咨询费 | G10: 31003 | H10: 专用设备购置
A11: 30106 | B11: 伙食补助费 | D11: 30204 | E11: 手续费 | G11: 31005 | H11: 基础设施建设
A12: 30107 | B12: 绩效工资 | C12: 601.28 | D12: 30205 | E12: 水费 | G12: 31006 | H12: 大型修缮
A13: 30108 | B13: 机关事业单位基本养老保险缴费 | C13: 204.06 | D13: 30206 | E13: 电费 | G13: 31007 | H13: 信息网络及软件购置更新
A14: 30109 | B14: 职业年金缴费 | C14: 102.1 | D14: 30207 | E14: 邮电费 | G14: 31008 | H14: 物资储备
A15: 30110 | B15: 职工基本医疗保险缴费 | C15: 51.56 | D15: 30208 | E15: 取暖费 | G15: 31009 | H15: 土地补偿
A16: 30111 | B16: 公务员医疗补助缴费 | D16: 30209 | E16: 物业管理费 | G16: 31010 | H16: 安置补助
A17: 30112 | B17: 其他社会保障缴费 | D17: 30211 | E17: 差旅费 | G17: 31011 | H17: 地上附着物和青苗补偿
A18: 30113 | B18: 住房公积金 | C18: 5 | D18: 30212 | E18: 因公出国（境）费用 | G18: 31012 | H18: 拆迁补偿
A19: 30114 | B19: 医疗费 | C19: 4.8 | D19: 30213 | E19: 维修（护）费 | G19: 31013 | H19: 公务用车购置
A20: 30199 | B20: 其他工资福利支出 | D20: 30214 | E20: 租赁费 | G20: 31019 | H20: 其他交通工具购置
A21: 303 | B21: 对个人和家庭的补助 | C21: =SUM(C22:C33) -> 240.04 | D21: 30215 | E21: 会议费 | G21: 31021 | H21: 文物和陈列品购置
A22: 30301 | B22: 离休费 | D22: 30216 | E22: 培训费 | G22: 31022 | H22: 无形资产购置
A23: 30302 | B23: 退休费 | D23: 30217 | E23: 公务接待费 | G23: 31099 | H23: 其他资本性支出
A24: 30303 | B24: 退职（役）费 | D24: 30218 | E24: 专用材料费 | G24: 312 | H24: 对企业补助
A25: 30304 | B25: 抚恤金 | C25: 6.84 | D25: 30224 | E25: 被装购置费 | G25: 31201 | H25: 资本金注入
A26: 30305 | B26: 生活补助 | C26: 206.95 | D26: 30225 | E26: 专用燃料费 | G26: 31203 | H26: 政府投资基金股权投资
A27: 30306 | B27: 救济费 | C27: 0 | D27: 30226 | E27: 劳务费 | G27: 31204 | H27: 费用补贴
A28: 30307 | B28: 医疗费补助 | C28: 26.25 | D28: 30227 | E28: 委托业务费 | G28: 31205 | H28: 利息补贴
A29: 30308 | B29: 助学金 | D29: 30228 | E29: 工会经费 | G29: 31299 | H29: 其他对企业补助
A30: 30309 | B30: 奖励金 | D30: 30229 | E30: 福利费 | G30: 399 | H30: 其他支出
A31: 30310 | B31: 个人农业生产补贴 | D31: 30231 | E31: 公务用车运行维护费 | G31: 39907 | H31: 国家赔偿费用支出
A32: 30311 | B32: 代缴社会保险费 | D32: 30239 | E32: 其他交通费用 | G32: 39908 | H32: 对民间非营利组织和群众性自治组织补贴
A33: 30399 | B33: 其他对个人和家庭的补助 | D33: 30240 | E33: 税金及附加费用 | G33: 39909 | H33: 经常性赠与
D34: 30299 | E34: 其他商品和服务支出 | G34: 39910 | H34: 资本性赠与
D35: 307 | E35: 债务利息及费用支出 | G35: 39999 | H35: 其他支出
D36: 30701 | E36: 国内债务付息
D37: 30702 | E37: 国外债务付息
D38: 30703 | E38: 国内债务发行费用
D39: 30704 | E39: 国外债务发行费用
A40: 人员经费合计 | C40: =C21+C7 -> 1495.36 | D40: 公用经费合计
A41: 备注：本表反映部门本年度一般公共预算财政拨款基本支出明细情况。

Sheet 政府性基金预算财政拨款收入支出决算表
A1: 政府性基金预算财政拨款收入支出决算表
H2: 公开07表
A3: 公开单位：重庆市江津区油溪中心卫生院 | H3: 单位：万元
A4: 功能分类科目编码 | B4: 项目(按“项”级功能分类科目) | C4: 年初结转和结余 | D4: 本年收入 | E4: 本年支出 | H4: 年末结转和结余
E5: 合计 | F5: 基本支出 | G5: 项目支出
A7: 备注：本表反映部门本年度政府性基金预算财政拨款收入支出及结转结余情况。 本单位无政府性基金收入，也没有使用政府性基金安排的支出，故本表无数据。

Sheet 国有资本经营预算财政拨款支出决算表
A1: 国有资本经营预算财政拨款支出决算表
A2: 公开08表
A3: 公开单位：重庆市江津区油溪中心卫生院 | G3: 单位：万元
A4: 项目 | E4: 本年支出
A5: 功能分类科目编码 | D5: 科目名称 | E5: 合计 | F5: 基本支出 | G5: 项目支出
A8: 合计
A9: 备注：本表反映部门本年度国有资本经营预算财政拨款支出情况。本单位无国有资本经营预算财政拨款支出，故本表为空。

Sheet 机构运行信息表
A1: 机构运行信息表
E2: 公开09表
A3: 公开单位：重庆市江津区油溪中心卫生院 | E3: 单位：万元
A4: 项 目 | B4: 预算数 | C4: 决算数 | D4: 项 目 | E4: 决算数
A5: 一、“三公”经费支出 | B5: — | C5: — | D5: 五、机关运行经费
A6: （一）支出合计 | D6: （一）行政单位
A7: 1．因公出国（境）费 | D7: （二）参照公务员法管理事业单位
A8: 2．公务用车购置及运行维护费 | D8: 六、资产信息 | E8: —
A9: （1）公务用车购置费 | D9: （一）车辆数合计（辆） | E9: 2
A10: （2）公务用车运行维护费 | D10: 1.副部（省）级及以上领导用车
A11: 3．公务接待费 | D11: 2.主要领导干部用车
A12: （1）国内接待费 | B12: — | D12: 3.机要通信用车
A13: 其中：外事接待费 | B13: — | D13: 4.应急保障用车
A14: （2）国（境）外接待费 | B14: — | D14: 5.执法执勤用车
A15: （二）相关统计数 | B15: — | C15: — | D15: 6.特种专业技术用车 | E15: 2
A16: 1．因公出国（境）团组数（个） | B16: — | D16: 7.离退休干部用车
A17: 2．因公出国（境）人次数（人） | B17: — | D17: 8.其他用车
A18: 3．公务用车购置数（辆） | B18: — | D18: （二）单价100万元（含）以上设备（不含车辆） | E18: 4
A19: 4．公务用车保有量（辆） | B19: — | D19: 七、政府采购支出信息 | E19: —
A20: 5．国内公务接待批次（个） | B20: — | D20: （一）政府采购支出合计
A21: 其中：外事接待批次（个） | B21: — | D21: 1．政府采购货物支出
A22: 6．国内公务接待人次（人） | B22: — | D22: 2．政府采购工程支出
A23: 其中：外事接待人次（人） | B23: — | D23: 3．政府采购服务支出
A24: 7．国（境）外公务接待批次（个） | B24: — | D24: （二）政府采购授予中小企业合同金额
A25: 8．国（境）外公务接待人次（人） | B25: — | D25: 其中：授予小微企业合同金额
A26: 二、会议费 | B26: —
A27: 三、培训费 | B27: —
A28: 四、差旅费 | B28: —
A29: 备注：1.本表反映部门本年度财政拨款“三公”经费支出预决算情况。其中，预算数为“三公”经费全年预算数，反映按规定程序调整后的预算数；决算数为包括本年度财政拨款和以前年度结转资金安排的实际支出。
A30: 2.本表为空的单位应将空表公开，并注明：本单位无相关数据，故本表为空。
